fUST/lending_fUST_20241015
["ID","MTS","AMOUNT","RATE_DAILY","PERIOD"]
[340260874,1728937856071,-500.0,0.00040149,60]
[340260875,1728937856081,-500.0,0.00040149,60]
[340260876,1728937856091,-500.0,0.00040149,60]
[340260877,1728937856099,-500.0,0.00040149,60]
[340260878,1728937856109,-500.0,0.00040149,60]
[340260879,1728937856118,-500.0,0.00040149,60]
[340260880,1728937856128,-500.0,0.00040149,60]
[340260881,1728937856137,-500.0,0.0004016,60]
[340260882,1728937856211,-543.0,0.0004016,30]
[340260883,1728937856237,-500.0,0.0004016,60]
[340260884,1728937856250,-500.0,0.0004016,60]
[340260885,1728937856262,-500.0,0.0004016,2]
[340260886,1728937856275,-500.0,0.0004016,60]
[340260887,1728937856287,-500.0,0.0004016,60]
[340260888,1728937856299,-500.0,0.0004016,60]
[340260889,1728937856310,-500.0,0.00040164,60]
[340260890,1728937856321,-7544.13,0.00040164,60]
[340260891,1728937856333,-5049.84,0.00040164,21]
[340260892,1728937856344,-372.16530298,0.00040178,30]
[340260893,1728937856355,-501.96480611,0.00040178,60]
[340260894,1728937856368,-500.0,0.00040179,60]
[340260895,1728937856380,-363.19,0.00040179,60]
[340260896,1728937856392,-507.71093577,0.00040179,60]
[340260897,1728937856404,-500.0,0.00040179,60]
[340260898,1728937856414,-174380.70986738,0.000403,5]
[340260899,1728937856425,-506.53766612,0.00040307,60]
[340260900,1728937856436,-500.0,0.00040307,60]
[340260901,1728937856448,-500.0,0.00040307,60]
[340260902,1728937856458,-500.0,0.00040307,60]
[340260903,1728937856468,-500.0,0.00040307,60]
[340260904,1728937856481,-500.0,0.00040307,60]
[340260905,1728937856493,-500.0,0.00040307,60]
[340260906,1728937856503,-500.0,0.00040307,60]
[340260907,1728937856514,-500.0,0.00040307,60]
[340260908,1728937856525,-500.0,0.00040307,60]
[340260909,1728937856536,-500.0,0.00040307,60]
[340260910,1728937856547,-500.0,0.00040307,60]
[340260911,1728937856559,-500.0,0.00040307,60]
[340260912,1728937856570,-500.0,0.00040307,60]
[340260913,1728937856582,-500.0,0.00040307,60]
[340260914,1728937856594,-500.0,0.00040307,60]
[340260915,1728937856607,-500.0,0.00040307,60]
[340260916,1728937856619,-500.0,0.00040307,60]
[340260917,1728937856629,-500.0,0.00040307,60]
[340260918,1728937856639,-500.0,0.00040307,60]
[340260919,1728937856648,-1950.61,0.00040307,60]
[340260920,1728937856659,-500.0,0.00040307,60]
[340260921,1728937856669,-500.0,0.00040307,60]
[340260922,1728937856680,-500.0,0.00040307,60]
[340260923,1728937856692,-253.0,0.00040333,4]
[340260924,1728937856704,-54364.27386047,0.00040351,2]
[340260925,1728937856716,-1051.8924576,0.00040351,2]
[340260926,1728937856728,-1223.26965738,0.00040351,2]
[340260927,1728937856743,-900.0,0.00040351,120]
[340260928,1728937856755,-1500.0,0.00040351,2]
[340260929,1728937856766,-2508.11411142,0.00040351,2]
[340260930,1728937856776,-515.16711283,0.00040351,2]
[340260931,1728937856789,-291.54725059,0.00040351,2]
[340260932,1728937856800,-4158.81398807,0.00040351,2]
[340260933,1728937856813,-163.60821859,0.00040351,2]
[340260934,1728937856825,-4129.22101409,0.00040351,2]
[340260935,1728937856836,-1170.84660119,0.00040351,2]
[340260936,1728937856852,-154.60716769,0.00040351,2]
[340260937,1728937856863,-516.35921458,0.00040351,2]
[340260938,1728937856873,-242.90071154,0.00040351,5]
[340260939,1728937856885,-1519.99538698,0.00040351,2]
[340260940,1728937856897,-223.71765349,0.00040351,2]
[340260941,1728937856908,-437.97410949,0.00040351,2]
[340260942,1728937856919,-1020.46569962,0.00040351,2]
[340260943,1728937856930,-497.02687069,0.00040351,2]
[340260944,1728937856940,-1881.10200046,0.00040351,2]
[340260945,1728937856952,-559.0868747,0.00040351,2]
[340260946,1728937856964,-394.84668403,0.00040351,2]
[340260947,1728937856973,-200.67855249,0.00040351,7]
[340260948,1728937856985,-513.0978733,0.00040373,5]
[340260949,1728937856995,-150.0,0.00040373,5]
[340260950,1728937857006,-158.0,0.0004054,120]
[340260951,1728937857017,-500.0,0.00040752,60]
[340260952,1728937857026,-500.0,0.00040752,60]
[340260953,1728937857036,-500.0,0.00040752,60]
[340260954,1728937857047,-433.78441008,0.00040752,60]
[340260955,1728937857057,-500.0,0.00040752,30]
[340260956,1728937857067,-500.0,0.00040752,60]
[340260957,1728937857078,-500.0,0.00040752,7]
[340260958,1728937857090,-500.0,0.00040752,60]
[340260959,1728937857101,-250.0,0.00040752,60]
[340260960,1728937857112,-547.77335062,0.00040752,60]
[340260961,1728937857122,-500.0,0.00040752,60]
[340260962,1728937857133,-500.0,0.00040752,60]
[340260963,1728937857143,-500.0,0.00040752,60]
[340260964,1728937857153,-500.0,0.00040752,60]
[340260965,1728937857163,-500.0,0.00040752,60]
[340260966,1728937857172,-500.0,0.00040752,60]
[340260967,1728937857182,-500.0,0.00040752,60]
[340260968,1728937857192,-500.0,0.00040752,60]
[340260969,1728937857201,-500.0,0.00040752,60]
[340260970,1728937857213,-500.0,0.00040752,60]
[340260971,1728937857224,-527.97751701,0.00040752,60]
[340260972,1728937857235,-500.0,0.00040752,60]
[340260973,1728937857246,-500.0,0.00040762,60]
[340260974,1728937857256,-543.0,0.00040762,30]
[340260975,1728937857270,-500.0,0.00040762,60]
[340260976,1728937857280,-500.0,0.00040762,60]
[340260977,1728937857291,-500.0,0.00040762,2]
[340260978,1728937857307,-500.0,0.00040762,60]
[340260979,1728937857319,-500.0,0.00040762,60]
[340260980,1728937857331,-500.0,0.00040762,60]
[340260981,1728937857342,-407.79482391,0.00040767,60]
[340260982,1728937857354,-7544.13,0.00040767,60]
[340260983,1728937857365,-5049.84,0.00040767,21]
[340260984,1728937857375,-274.5,0.00040782,60]
[340260985,1728937857386,-363.19,0.00040782,60]
[340260986,1728937857399,-500.0,0.00040782,60]
[340260987,1728937857410,-500.0,0.0004091,60]
[340260988,1728937857423,-500.0,0.0004091,60]
[340260989,1728937857434,-500.0,0.0004091,60]
[340260990,1728937857445,-500.0,0.0004091,60]
[340260991,1728937857457,-500.0,0.0004091,60]
[340260992,1728937857467,-500.0,0.0004091,60]
[340260993,1728937857480,-579.84413814,0.0004091,60]
[340260994,1728937857491,-500.0,0.0004091,60]
[340260995,1728937857503,-500.0,0.0004091,60]
[340260996,1728937857514,-559.24979059,0.0004091,60]
[340260997,1728937857523,-500.0,0.0004091,60]
[340260998,1728937857534,-375.2651113,0.0004091,60]
[340260999,1728937857546,-500.0,0.0004091,60]
[340261000,1728937857558,-500.0,0.0004091,60]
[340261001,1728937857570,-500.0,0.0004091,60]
[340261002,1728937857580,-500.0,0.0004091,60]
[340261003,1728937857591,-500.0,0.0004091,60]
[340261004,1728937857602,-500.0,0.0004091,60]
[340261005,1728937857615,-500.0,0.0004091,60]
[340261006,1728937857626,-1950.61,0.0004091,60]
[340261007,1728937857637,-500.0,0.0004091,60]
[340261008,1728937857647,-500.0,0.0004091,60]
[340261009,1728937857657,-500.0,0.0004091,60]
[340261010,1728937857669,-250.0,0.00040921,5]
[340261011,1728937857681,-1092.75970573,0.00040942,5]
[340261012,1728937857693,-739.96994139,0.00040942,5]
[340261013,1728937857704,-1000.0,0.00040942,5]
[340261014,1728937857716,-1000.0,0.00040942,5]
[340261015,1728937857729,-1000.0,0.00040942,5]
[340261016,1728937857744,-152.11922774,0.00040973,5]
[340261017,1728937857755,-5000.0,0.00041,41]
[340261018,1728937857766,-1572.71013747,0.00041,2]
[340261019,1728937857778,-6224.96227067,0.00041,2]
[340261020,1728937857790,-198.0,0.00041,14]
[340261021,1728937857875,-96885.01219306,0.0004108,2]
[340261022,1728937857888,-1765.43,0.00041095,30]
[340261023,1728937857899,-1165.215,0.00041095,8]
[340261024,1728937857909,-151.0,0.00041096,120]
[340261025,1728937857919,-151.0,0.00041096,120]
[340261026,1728937857929,-151.0,0.00041096,120]
[340261027,1728937857939,-151.0,0.00041096,120]
[340261028,1728937857950,-151.0,0.00041096,120]
[340261029,1728937857960,-151.0,0.00041096,120]
[340261030,1728937857971,-151.0,0.00041096,120]
[340261031,1728937857982,-151.0,0.00041096,120]
[340261032,1728937857992,-151.0,0.00041096,120]
[340261033,1728937858001,-151.0,0.00041096,120]
[340261034,1728937858011,-151.0,0.00041096,120]
[340261035,1728937858020,-151.0,0.00041096,120]
[340261036,1728937858030,-151.0,0.00041096,120]
[340261037,1728937858039,-242.007019,0.00041096,120]
[340261038,1728937858050,-151.0,0.00041096,2]
[340261039,1728937858061,-151.0,0.00041096,2]
[340261040,1728937858074,-151.0,0.00041096,2]
[340261041,1728937858085,-151.0,0.00041096,2]
[340261042,1728937858095,-151.0,0.00041096,2]
[340261043,1728937858106,-151.0,0.00041096,2]
[340261044,1728937858116,-151.0,0.00041096,2]
[340261045,1728937858127,-151.0,0.00041096,2]
[340261046,1728937858137,-151.0,0.00041096,2]
[340261047,1728937858148,-151.0,0.00041096,2]
[340261048,1728937858158,-151.0,0.00041096,2]
[340261049,1728937858169,-151.0,0.00041096,2]
[340261050,1728937858188,-151.0,0.00041096,2]
[340261051,1728937858200,-288.085714,0.00041096,2]
[340261052,1728937858211,-180.545127,0.00041096,2]
[340261053,1728937858222,-246.1,0.000411,30]
[340261054,1728937858235,-30434.53,0.000411,30]
[340261055,1728937858245,-5028.77,0.000411,30]
[340261056,1728937858256,-12349.63,0.000411,30]
[340261057,1728937858267,-669.69338798,0.00041124,28]
[340261058,1728937858278,-1608.65344922,0.00041146,2]
[340261059,1728937858290,-198.0,0.00041157,90]
[340261060,1728937858300,-154.34185749,0.00041349,38]
[340261061,1728937858310,-160.0,0.00041353,3]
[340261062,1728937858319,-500.0,0.00041354,60]
[340261063,1728937858329,-425.84075094,0.00041354,60]
[340261064,1728937858339,-500.0,0.00041354,60]
[340261065,1728937858348,-500.0,0.00041354,30]
[340261066,1728937858358,-500.0,0.00041354,60]
[340261067,1728937858369,-500.0,0.00041354,7]
[340261068,1728937858382,-500.0,0.00041354,60]
[340261069,1728937858394,-250.0,0.00041354,60]
[340261070,1728937858405,-500.0,0.00041354,60]
[340261071,1728937858415,-500.0,0.00041354,60]
[340261072,1728937858425,-500.0,0.00041354,60]
[340261073,1728937858437,-500.0,0.00041354,60]
[340261074,1728937858449,-500.0,0.00041354,60]
[340261075,1728937858461,-500.0,0.00041354,60]
[340261076,1728937858471,-280.03669525,0.00041354,60]
[340261077,1728937858482,-500.0,0.00041354,60]
[340261078,1728937858495,-500.0,0.00041354,60]
[340261079,1728937858505,-500.0,0.00041354,60]
[340261080,1728937858516,-500.0,0.00041354,60]
[340261081,1728937858526,-500.0,0.00041365,60]
[340261082,1728937858539,-543.0,0.00041365,30]
[340261083,1728937858550,-500.0,0.00041365,60]
[340261084,1728937858561,-500.0,0.00041365,60]
[340261085,1728937858572,-500.0,0.00041365,2]
[340261086,1728937858583,-500.0,0.00041365,60]
[340261087,1728937858595,-500.0,0.00041365,60]
[340261088,1728937858605,-500.0,0.00041365,60]
[340261089,1728937858617,-1765.43,0.00041369,30]
[340261090,1728937858628,-7544.13,0.00041369,60]
[340261091,1728937858638,-5049.84,0.00041369,21]
[340261092,1728937858649,-363.19,0.00041385,60]
[340261093,1728937858661,-500.0,0.00041385,60]
[340261094,1728937858671,-1002.61484206,0.00041452,7]
[340261095,1728937858682,-350.0,0.00041468,7]
[340261096,1728937858694,-500.0,0.00041513,60]
[340261097,1728937858704,-500.0,0.00041513,60]
[340261098,1728937858716,-500.0,0.00041513,60]
[340261099,1728937858726,-500.0,0.00041513,60]
[340261100,1728937858737,-500.0,0.00041513,60]
[340261101,1728937858749,-500.0,0.00041513,60]
[340261102,1728937858759,-624.63675284,0.00041513,60]
[340261103,1728937858769,-500.0,0.00041513,60]
[340261104,1728937858779,-500.0,0.00041513,60]
[340261105,1728937858790,-500.0,0.00041513,60]
[340261106,1728937858805,-500.0,0.00041513,60]
[340261107,1728937858816,-454.72536911,0.00041513,60]
[340261108,1728937858826,-500.0,0.00041513,60]
[340261109,1728937858839,-500.0,0.00041513,60]
[340261110,1728937858849,-252.34104136,0.00041513,60]
[340261111,1728937858859,-500.0,0.00041513,60]
[340261112,1728937858869,-1950.61,0.00041513,60]
[340261113,1728937858880,-500.0,0.00041513,60]
[340261114,1728937858892,-500.0,0.00041513,60]
[340261115,1728937858902,-500.0,0.00041513,60]
[340261116,1728937858913,-185.441072,0.00041598,30]
[340261117,1728937858924,-176.702304,0.00041598,30]
[340261118,1728937858935,-341.198147,0.00041598,30]
[340261119,1728937858946,-1765.43,0.00041643,30]
[340261120,1728937858956,-223.708,0.00041704,30]
[340261121,1728937858967,-737.855,0.00041704,30]
[340261122,1728937858978,-2000.0,0.00041884,7]
[340261123,1728937858991,-3000.0,0.00041884,10]
[340261124,1728937859000,-1765.43,0.00041917,30]
[340261125,1728937859011,-500.0,0.00041957,60]
[340261126,1728937859021,-500.0,0.00041957,60]
[340261127,1728937859031,-500.0,0.00041957,30]
[340261128,1728937859040,-335.20892408,0.00041957,60]
[340261129,1728937859050,-500.0,0.00041957,7]
[340261130,1728937859060,-500.0,0.00041957,60]
[340261131,1728937859071,-250.0,0.00041957,60]
[340261132,1728937859081,-500.0,0.00041957,60]
[340261133,1728937859094,-500.0,0.00041957,60]
[340261134,1728937859104,-612.71353804,0.00041957,60]
[340261135,1728937859116,-500.0,0.00041957,60]
[340261136,1728937859126,-500.0,0.00041957,60]
[340261137,1728937859137,-500.0,0.00041957,60]
[340261138,1728937859150,-553.53920016,0.00041957,60]
[340261139,1728937859160,-500.0,0.00041957,60]
[340261140,1728937859170,-500.0,0.00041957,60]
[340261141,1728937859179,-623.41877327,0.00041957,60]
[340261142,1728937859190,-500.0,0.00041968,60]
[340261143,1728937859200,-543.0,0.00041968,30]
[340261144,1728937859211,-500.0,0.00041968,60]
[340261145,1728937859222,-500.0,0.00041968,60]
[340261146,1728937859234,-500.0,0.00041968,2]
[340261147,1728937859245,-500.0,0.00041968,60]
[340261148,1728937859256,-500.0,0.00041968,60]
[340261149,1728937859343,-500.0,0.00041968,60]
[340261150,1728937859354,-7544.13,0.00041972,60]
[340261151,1728937859365,-5049.84,0.00041972,21]
[340261152,1728937859377,-363.19,0.00041988,60]
[340261153,1728937859387,-500.0,0.00041988,60]
[340261154,1728937859398,-5000.0,0.00042,42]
[340261155,1728937859408,-228.0,0.00042,2]
[340261156,1728937859420,-228.0,0.00042,2]
[340261157,1728937859431,-450.0,0.00042016,7]
[340261158,1728937859443,-500.0,0.00042116,60]
[340261159,1728937859454,-500.0,0.00042116,60]
[340261160,1728937859464,-500.0,0.00042116,60]
[340261161,1728937859477,-500.0,0.00042116,60]
[340261162,1728937859487,-500.0,0.00042116,60]
[340261163,1728937859498,-500.0,0.00042116,60]
[340261164,1728937859508,-500.0,0.00042116,60]
[340261165,1728937859518,-500.0,0.00042116,60]
[340261166,1728937859531,-561.46866737,0.00042116,60]
[340261167,1728937859544,-505.23890026,0.00042116,60]
[340261168,1728937859554,-500.0,0.00042116,60]
[340261169,1728937859565,-500.0,0.00042116,60]
[340261170,1728937859577,-500.0,0.00042116,60]
[340261171,1728937859587,-1950.61,0.00042116,60]
[340261172,1728937859598,-167.77515154,0.00042116,60]
[340261173,1728937859609,-500.0,0.00042116,60]
[340261174,1728937859618,-500.0,0.00042116,60]
[340261175,1728937859629,-176.702304,0.00042118,30]
[340261176,1728937859639,-341.198147,0.00042118,30]
[340261177,1728937859649,-1765.43,0.00042191,30]
[340261178,1728937859662,-180.61206006,0.00042318,2]
[340261179,1728937859673,-526.0,0.00042382,2]
[340261180,1728937859684,-1806.0,0.00042382,2]
[340261181,1728937859695,-1157.0,0.00042382,2]
[340261182,1728937859707,-1765.43,0.00042465,30]
[340261183,1728937859718,-500.0,0.0004256,60]
[340261184,1728937859730,-500.0,0.0004256,60]
[340261185,1728937859745,-500.0,0.0004256,30]
[340261186,1728937859755,-500.0,0.0004256,7]
[340261187,1728937859765,-202.74860811,0.0004256,60]
[340261188,1728937859775,-250.0,0.0004256,60]
[340261189,1728937859785,-500.0,0.0004256,60]
[340261190,1728937859795,-500.0,0.0004256,60]
[340261191,1728937859805,-500.0,0.0004256,60]
[340261192,1728937859817,-469.60002656,0.0004256,60]
[340261193,1728937859827,-500.0,0.0004256,60]
[340261194,1728937859839,-500.0,0.0004256,60]
[340261195,1728937859849,-500.0,0.0004256,60]
[340261196,1728937859859,-550.0,0.00042564,7]
[340261197,1728937859870,-500.0,0.0004257,60]
[340261198,1728937859880,-543.0,0.0004257,30]
[340261199,1728937859890,-500.0,0.0004257,60]
[340261200,1728937859901,-500.0,0.0004257,60]
[340261201,1728937859911,-500.0,0.0004257,2]
[340261202,1728937859921,-500.0,0.0004257,60]
[340261203,1728937859931,-500.0,0.0004257,60]
[340261204,1728937859941,-381.03906013,0.0004257,60]
[340261205,1728937859952,-7544.13,0.00042575,60]
[340261206,1728937859963,-5049.84,0.00042575,21]
[340261207,1728937859975,-363.19,0.0004259,60]
[340261208,1728937859988,-500.0,0.0004259,60]
[340261209,1728937859998,-176.702304,0.00042638,30]
[340261210,1728937860009,-341.198147,0.00042638,30]
[340261211,1728937860021,-500.0,0.00042718,60]
[340261212,1728937860031,-500.0,0.00042718,60]
[340261213,1728937860040,-500.0,0.00042718,60]
[340261214,1728937860051,-500.0,0.00042718,60]
[340261215,1728937860061,-265.91874154,0.00042718,60]
[340261216,1728937860071,-500.0,0.00042718,60]
[340261217,1728937860082,-500.0,0.00042718,60]
[340261218,1728937860093,-500.0,0.00042718,60]
[340261219,1728937860102,-500.0,0.00042718,60]
[340261220,1728937860114,-292.16866688,0.00042718,60]
[340261221,1728937860125,-500.0,0.00042718,60]
[340261222,1728937860137,-1950.61,0.00042718,60]
[340261223,1728937860150,-500.0,0.00042718,60]
[340261224,1728937860161,-500.0,0.00042718,60]
[340261225,1728937860171,-1765.43,0.00042739,30]
[340261226,1728937860183,-1608.65344922,0.00042865,2]
[340261227,1728937860195,-153.3904382,0.00042877,30]
[340261228,1728937860206,-414.0741816,0.00042877,30]
[340261229,1728937860216,-156.9593904,0.00042877,30]
[340261230,1728937860226,-153.0,0.00042877,30]
[340261231,1728937860236,-209.799474,0.00042877,30]
[340261232,1728937860247,-414.0741816,0.00042877,30]
[340261233,1728937860257,-153.0,0.00042877,30]
[340261234,1728937860266,-306.0,0.00042877,30]
[340261235,1728937860276,-273.5569807,0.00042877,30]
[340261236,1728937860286,-153.0,0.00042877,30]
[340261237,1728937860295,-153.0,0.00042877,30]
[340261238,1728937860305,-414.0741816,0.00042877,30]
[340261239,1728937860314,-153.0,0.00042877,30]
[340261240,1728937860325,-153.0,0.00042877,30]
[340261241,1728937860337,-414.0741816,0.00042877,30]
[340261242,1728937860349,-153.0,0.00042877,30]
[340261243,1728937860362,-414.0741816,0.00042877,30]
[340261244,1728937860372,-596.3223039,0.00042877,30]
[340261245,1728937860384,-150.0,0.000429,2]
[340261246,1728937860394,-198.0,0.00042928,90]
[340261247,1728937860404,-1000.0,0.00042946,10]
[340261248,1728937860415,-1500.0,0.00042946,10]
[340261249,1728937860427,-5000.0,0.00043,43]
[340261250,1728937860437,-1000.0,0.00043,7]
[340261251,1728937860448,-1765.43,0.00043013,30]
[340261252,1728937860460,-650.0,0.00043112,7]
[340261253,1728937860470,-176.702304,0.00043158,30]
[340261254,1728937860481,-341.198147,0.00043158,30]
[340261255,1728937860492,-500.0,0.00043163,60]
[340261256,1728937860503,-500.0,0.00043163,60]
[340261257,1728937860515,-500.0,0.00043163,30]
[340261258,1728937860525,-500.0,0.00043163,7]
[340261259,1728937860535,-250.0,0.00043163,60]
[340261260,1728937860546,-604.50330001,0.00043163,60]
[340261261,1728937860556,-327.8428656,0.00043163,60]
[340261262,1728937860565,-500.0,0.00043163,60]
[340261263,1728937860575,-500.0,0.00043163,60]
[340261264,1728937860586,-500.0,0.00043163,60]
[340261265,1728937860597,-500.0,0.00043163,60]
[340261266,1728937860669,-500.0,0.00043173,60]
[340261267,1728937860679,-543.0,0.00043173,30]
[340261268,1728937860690,-500.0,0.00043173,60]
[340261269,1728937860700,-500.0,0.00043173,60]
[340261270,1728937860710,-500.0,0.00043173,2]
[340261271,1728937860720,-500.0,0.00043173,60]
[340261272,1728937860734,-500.0,0.00043173,60]
[340261273,1728937860746,-7544.13,0.00043178,60]
[340261274,1728937860756,-5049.84,0.00043178,21]
[340261275,1728937860767,-363.19,0.00043193,60]
[340261276,1728937860777,-500.0,0.00043193,60]
[340261277,1728937860787,-1765.43,0.00043287,30]
[340261278,1728937860798,-500.0,0.00043321,60]
[340261279,1728937860811,-500.0,0.00043321,60]
[340261280,1728937860823,-500.0,0.00043321,60]
[340261281,1728937860832,-500.0,0.00043321,60]
[340261282,1728937860842,-500.0,0.00043321,60]
[340261283,1728937860853,-500.0,0.00043321,60]
[340261284,1728937860862,-500.0,0.00043321,60]
[340261285,1728937860874,-500.0,0.00043321,60]
[340261286,1728937860884,-500.0,0.00043321,60]
[340261287,1728937860895,-1950.61,0.00043321,60]
[340261288,1728937860905,-500.0,0.00043321,60]
[340261289,1728937860914,-500.0,0.00043321,60]
[340261290,1728937860924,-10000.00082827,0.000435,60]
[340261291,1728937860934,-1765.43,0.00043561,30]
[340261292,1728937860944,-750.0,0.0004366,7]
[340261293,1728937860954,-176.702304,0.00043678,30]
[340261294,1728937860964,-341.198147,0.00043678,30]
[340261295,1728937860975,-500.0,0.00043765,60]
[340261296,1728937860987,-500.0,0.00043765,60]
[340261297,1728937860998,-500.0,0.00043765,30]
[340261298,1728937861009,-500.0,0.00043765,7]
[340261299,1728937861022,-250.0,0.00043765,60]
[340261300,1728937861032,-500.0,0.00043765,60]
[340261301,1728937861042,-500.0,0.00043765,60]
[340261302,1728937861053,-500.0,0.00043765,60]
[340261303,1728937861064,-500.0,0.00043765,60]
[340261304,1728937861074,-500.0,0.00043776,60]
[340261305,1728937861083,-543.0,0.00043776,30]
[340261306,1728937861093,-500.0,0.00043776,60]
[340261307,1728937861103,-280.03,0.00043776,60]
[340261308,1728937861113,-633.759147,0.00043776,2]
[340261309,1728937861123,-500.0,0.00043776,60]
[340261310,1728937861133,-500.0,0.00043776,60]
[340261311,1728937861142,-7544.13,0.0004378,60]
[340261312,1728937861152,-5049.84,0.0004378,21]
[340261313,1728937861161,-363.19,0.00043796,60]
[340261314,1728937861171,-500.0,0.00043796,60]
[340261315,1728937861180,-246.1,0.000438,30]
[340261316,1728937861190,-1765.43,0.00043835,30]
[340261317,1728937861199,-500.0,0.00043835,120]
[340261318,1728937861210,-1747.8225,0.00043835,9]
[340261319,1728937861219,-500.0,0.000439,10]
[340261320,1728937861230,-500.0,0.000439,10]
[340261321,1728937861239,-500.0,0.00043924,60]
[340261322,1728937861250,-500.0,0.00043924,60]
[340261323,1728937861261,-500.0,0.00043924,60]
[340261324,1728937861272,-500.0,0.00043924,60]
[340261325,1728937861283,-500.0,0.00043924,60]
[340261326,1728937861294,-500.0,0.00043924,60]
[340261327,1728937861304,-500.0,0.00043924,60]
[340261328,1728937861315,-500.0,0.00043924,60]
[340261329,1728937861327,-500.0,0.00043924,60]
[340261330,1728937861337,-1950.61,0.00043924,60]
[340261331,1728937861347,-500.0,0.00043924,60]
[340261332,1728937861357,-500.0,0.00043924,60]
[340261333,1728937861368,-150.0,0.00043952,120]
[340261334,1728937861377,-5000.0,0.00044,44]
[340261335,1728937861387,-200.0,0.00044,120]
[340261336,1728937861398,-1000.0,0.00044,15]
[340261337,1728937861408,-1765.43,0.00044109,30]
[340261338,1728937861419,-19120.38026684,0.000442,120]
[340261339,1728937861429,-19120.38026684,0.000442,120]
[340261340,1728937861440,-19120.38026684,0.000442,120]
[340261341,1728937861450,-19120.38026684,0.000442,120]
[340261342,1728937861460,-850.0,0.00044208,7]
[340261343,1728937861470,-500.0,0.00044368,60]
[340261344,1728937861479,-500.0,0.00044368,60]
[340261345,1728937861489,-500.0,0.00044368,30]
[340261346,1728937861499,-500.0,0.00044368,7]
[340261347,1728937861509,-250.0,0.00044368,60]
[340261348,1728937861518,-500.0,0.00044368,60]
[340261349,1728937861528,-500.0,0.00044368,60]
[340261350,1728937861538,-500.0,0.00044368,60]
[340261351,1728937861548,-500.0,0.00044368,60]
[340261352,1728937861558,-500.0,0.00044379,60]
[340261353,1728937861567,-543.0,0.00044379,30]
[340261354,1728937861576,-500.0,0.00044379,60]
[340261355,1728937861587,-500.0,0.00044379,60]
[340261356,1728937861596,-500.0,0.00044379,60]
[340261357,1728937861606,-1765.43,0.00044383,30]
[340261358,1728937861616,-7544.13,0.00044383,60]
[340261359,1728937861626,-5049.84,0.00044383,21]
[340261360,1728937861636,-363.19,0.00044399,60]
[340261361,1728937861646,-500.0,0.00044399,60]
[340261362,1728937861656,-30434.53,0.000444,30]
[340261363,1728937861666,-5028.77,0.000444,30]
[340261364,1728937861676,-12349.63,0.000444,30]
[340261365,1728937861685,-5000.0,0.00044458,14]
[340261366,1728937861695,-500.0,0.00044527,60]
[340261367,1728937861705,-500.0,0.00044527,60]
[340261368,1728937861715,-500.0,0.00044527,60]
[340261369,1728937861727,-500.0,0.00044527,60]
[340261370,1728937861742,-555.31945029,0.00044527,60]
[340261371,1728937861754,-500.0,0.00044527,60]
[340261372,1728937861763,-500.0,0.00044527,60]
[340261373,1728937861773,-500.0,0.00044527,60]